bitfinex-derivatives/quotes_ETHF0:USTF0_20260116
["timestamp","ask_amount","ask_price","bid_price","bid_amount"]
[1768589446115,0.15235,3283.2,3281.8,0.61646209]
[1768589447422,0.155082,3283.2,3281.8,0.61970032]
[1768589448933,0.77439365,3283.2,3281.8,0.61970032]
[1768589454542,0.15236,3283.1,3281.8,0.61970032]
[1768589461343,1.68245046,3283.0,3281.8,0.00323823]
[1768589461543,0.63777891,3282.7,3281.8,0.00323823]
[1768589462247,0.79015891,3282.7,3281.8,0.00323823]
[1768589462448,0.89300542,3282.6,3281.8,0.00323823]
[1768589462649,0.79015891,3282.7,3281.8,0.00323823]
[1768589462851,0.89301329,3282.6,3281.8,0.00323823]
[1768589463150,0.79015891,3282.7,3281.8,0.00323823]
[1768589463351,0.89326964,3282.6,3281.8,0.00323823]
[1768589463539,0.79015891,3282.7,3281.8,0.00323823]
[1768589463736,0.89335964,3282.6,3281.8,0.00323823]
[1768589463940,0.79015891,3282.7,3281.8,0.00323823]
[1768589464150,0.89350053,3282.6,3281.8,0.00323823]
[1768589464451,0.79015891,3282.7,3281.8,0.00323823]
[1768589464651,0.89380897,3282.6,3281.8,0.00323823]
[1768589464841,0.79015891,3282.7,3281.8,0.00323823]
[1768589465043,0.89382681,3282.6,3281.8,0.00323823]
[1768589465253,0.79015891,3282.7,3281.8,0.00323823]
[1768589465557,0.89388306,3282.6,3281.8,0.00323823]
[1768589465751,1.78139395,3282.7,3281.8,0.00323823]
[1768589466053,0.8938162,3282.6,3281.8,0.00323823]
[1768589466257,1.14361504,3282.7,3281.8,0.00323823]
[1768589467654,0.15238,3282.7,3281.8,0.00323823]
[1768589476655,0.99123504,3282.5,3280.9,0.76190244]
[1768589476844,0.99123504,3282.2,3280.9,0.60944244]
[1768589477553,0.99123504,3282.2,3280.8,0.99123504]
[1768589477761,0.99123504,3282.2,3280.8,0.99408623]
[1768589479654,1.78141395,3282.2,3280.8,0.00285119]
[1768589479863,0.63777891,3281.9,3280.8,0.00285119]
[1768589484867,0.15241,3282.0,3280.9,0.99123504]
[1768589485367,0.15241,3282.0,3280.8,0.00285119]
[1768589489368,0.80070277,3282.0,3280.8,0.00285119]
[1768589489669,0.99123504,3281.7,3280.8,0.00285119]
[1768589489971,0.15242,3281.8,3280.8,0.00285119]
[1768589496075,0.15242,3281.8,3280.9,0.99123504]
[1768589496782,0.64829277,3282.4,3281.5,0.99123504]
[1768589496783,0.15239,3282.4,3281.5,0.99123504]
[1768589497181,0.15239,3282.4,3281.3,0.99123504]
[1768589497982,1.63952781,3282.7,3281.3,0.99123504]
[1768589498182,0.89007236,3282.6,3281.3,0.99123504]
[1768589498383,1.63952781,3282.7,3281.3,0.99123504]
[1768589498586,0.89014434,3282.6,3281.3,0.99123504]
[1768589498778,0.15236,3283.0,3281.6,0.99123504]
[1768589498977,0.8902758,3282.9,3281.6,0.99123504]
[1768589499178,0.15236,3283.0,3281.6,0.99123504]
[1768589499681,0.15236,3283.0,3281.3,0.61205088]
[1768589499880,0.15236,3283.0,3281.5,0.99123504]
[1768589499881,0.99123504,3282.9,3281.5,0.99123504]
[1768589500375,1.63952781,3282.9,3281.3,1.60328592]
[1768589500573,0.99123504,3282.7,3281.3,1.60328592]
[1768589500785,0.99123504,3282.5,3281.3,0.61205088]
[1768589501085,0.99123504,3282.6,3281.3,0.61205088]
[1768589502784,0.99123504,3282.6,3281.3,1.60328592]
[1768589502981,1.14360504,3282.8,3281.3,1.60328592]
[1768589506487,0.002732,3283.2,3281.9,0.99123504]
[1768589507481,0.99123504,3283.1,3281.9,0.99123504]
[1768589510587,0.002732,3283.2,3281.9,0.99123504]
[1768589511591,0.99123504,3283.1,3281.7,1.60698822]
[1768589513694,0.002732,3283.2,3281.7,1.60698822]
[1768589513898,0.99396704,3283.2,3281.9,0.99123504]
[1768589514885,0.002732,3283.2,3281.9,0.99123504]
[1768589518293,0.002732,3283.2,3281.7,0.61575318]
[1768589518604,0.99396704,3283.2,3281.8,0.99123504]
[1768589519307,0.99123504,3283.0,3281.7,0.61575318]
[1768589521098,0.99123504,3282.9,3281.7,0.61575318]
[1768589521398,0.002732,3283.2,3281.9,0.61575318]
[1768589521599,0.002732,3283.2,3282.4,0.99123504]
[1768589522098,0.002732,3283.2,3282.2,0.99123504]
[1768589525005,0.002732,3283.2,3282.5,0.99123504]
[1768589525191,4.04023504,3283.9,3282.5,0.99123504]
[1768589525393,3.049,3283.9,3282.3,0.61575318]
[1768589525999,3.049,3283.9,3282.3,0.76814318]
[1768589526201,3.05294574,3283.9,3282.3,0.76814318]
[1768589527602,0.99045568,3283.5,3282.1,40.8]
[1768589527799,0.60295079,3283.8,3282.1,40.8]
[1768589528406,0.60295079,3283.8,3281.9,0.61575318]
[1768589528911,0.60295079,3283.8,3281.9,41.41575318]
[1768589529517,0.60295079,3283.8,3281.9,0.61575318]
[1768589530617,0.60295079,3283.7,3281.9,0.61575318]
[1768589534114,0.15233,3283.8,3281.9,0.61575318]
[1768589534507,0.15233,3283.8,3281.9,0.76816318]
[1768589534706,0.15233,3283.8,3281.7,40.8]
[1768589534707,0.00394574,3283.9,3282.4,1.60620886]
[1768589534907,0.00394574,3283.9,3282.5,0.61575318]
[1768589535107,0.00394574,3283.9,3282.9,0.61575318]
[1768589535309,0.1523,3284.4,3282.9,0.61575318]
[1768589535515,0.1523,3284.4,3282.9,41.41575318]
[1768589536210,0.15502233,3284.4,3282.9,41.41575318]
[1768589538423,0.15502233,3284.4,3283.0,0.61575318]
[1768589539521,0.00272233,3284.4,3283.0,0.61575318]
[1768589541018,0.99317801,3284.4,3283.0,0.61575318]
[1768589541220,1.5961288,3284.4,3283.0,0.61575318]
[1768589542108,1.5961288,3284.4,3282.8,0.15237]
[1768589542719,0.65150643,3284.3,3282.8,0.15237]
[1768589542920,1.64196211,3283.6,3282.1,0.1524]
[1768589543111,1.64196211,3283.6,3281.8,0.6383197]
[1768589543319,0.65150643,3283.6,3281.9,40.8]
[1768589543511,0.99045568,3283.3,3281.8,0.6383197]
[1768589543716,0.65150643,3283.2,3281.6,0.15243]
[1768589543924,0.65150643,3283.2,3281.6,40.95243]
[1768589544121,0.65150643,3283.2,3281.6,40.8]
[1768589545523,0.65150643,3283.2,3281.6,41.4383197]
[1768589547827,0.65150643,3283.2,3281.6,0.6383197]
[1768589553236,0.99045568,3282.6,3281.1,0.64391353]
[1768589553427,0.99045568,3282.6,3281.2,3.501]
[1768589553630,0.80407066,3282.9,3281.2,3.501]
[1768589553830,0.80407066,3282.9,3281.2,44.301]
[1768589554034,0.80407066,3282.9,3281.3,0.64391353]
[1768589554236,0.15237,3282.9,3281.3,0.64391353]
[1768589564443,0.15237,3282.9,3281.5,0.64391353]
[1768589585359,1.14345154,3282.9,3281.5,1.63499507]
[1768589589359,1.14345154,3282.9,3281.6,0.62328165]
[1768589590958,1.14345154,3282.9,3281.6,1.61436319]
[1768589592460,0.99108154,3282.5,3281.3,0.15244]
[1768589592762,0.99108154,3282.8,3281.3,1.76680319]
[1768589593062,0.99108154,3282.8,3281.4,0.62328165]
[1768589593254,0.99108154,3282.8,3281.5,0.99108154]
[1768589595162,0.99108154,3282.8,3281.4,1.61436319]
[1768589596164,0.99108154,3282.6,3281.4,0.62328165]
[1768589597272,0.99108154,3282.6,3281.4,1.61436319]
[1768589597673,1.59544011,3282.8,3281.4,1.61436319]
[1768589597973,0.15237,3282.9,3281.6,1.61436319]
[1768589602375,0.99108154,3282.7,3281.6,0.62328165]
[1768589603680,0.99108154,3282.4,3281.3,0.15244]
[1768589606779,0.99108154,3282.7,3281.3,1.79775672]
[1768589609188,0.99108154,3282.7,3281.4,0.66259398]
[1768589610194,0.15237,3282.9,3281.6,1.65367552]
[1768589610490,0.15237,3282.9,3281.9,0.99108154]
[1768589610786,1.65061253,3283.3,3281.9,1.65367552]
[1768589610787,0.65953099,3283.3,3281.9,1.65367552]
[1768589610995,0.15234,3283.5,3282.2,0.99108154]
[1768589611677,0.15234,3283.5,3282.2,1.65367552]
[1768589612079,0.65953099,3283.7,3282.3,0.66259398]
[1768589612280,0.99108154,3283.6,3282.3,0.66259398]
[1768589613790,0.99108154,3283.4,3282.3,0.66259398]
[1768589613988,0.99108154,3283.4,3281.9,1.65367552]
[1768589615091,0.99108154,3283.4,3282.0,0.66259398]
[1768589617392,0.99108154,3283.4,3282.1,1.65367552]
[1768589617991,1.14341154,3283.8,3282.4,0.66259398]
[1768589619391,0.99108154,3283.6,3282.4,0.66259398]
[1768589620294,1.14341154,3283.8,3282.4,0.66259398]
[1768589621898,0.99108154,3283.6,3282.4,0.66259398]
[1768589624093,0.99108154,3283.7,3282.4,0.66259398]
[1768589625398,0.99108154,3283.5,3282.4,0.66259398]
[1768589629500,0.99108154,3283.5,3282.0,0.66259398]
[1768589629798,0.99108154,3283.5,3282.1,0.99108154]
[1768589630001,0.99108154,3283.3,3282.0,0.66259398]
[1768589631599,0.99108154,3283.5,3282.1,0.99108154]
[1768589631787,0.99108154,3283.5,3282.2,0.99108154]
[1768589634107,0.15233,3283.7,3282.2,1.61339481]
[1768589634309,1.14341154,3283.7,3282.2,1.61339481]
[1768589634909,1.78487156,3283.7,3282.2,1.61339481]
[1768589635405,0.99108154,3283.5,3282.2,1.61339481]
[1768589637599,0.99108154,3283.5,3282.2,0.62231327]
[1768589637799,0.99108154,3283.1,3281.9,3.96967002]
[1768589638000,0.99108154,3283.1,3281.9,0.15241]
[1768589640311,0.99108154,3283.3,3281.9,4.96075156]
[1768589640809,0.99108154,3283.3,3281.9,1.14349154]
[1768589645317,0.64146002,3283.5,3281.9,0.15241]
[1768589645702,0.64146002,3283.2,3281.8,3.81726002]
[1768589645906,1.6323717,3282.9,3281.8,3.81726002]
[1768589646213,1.6323717,3282.9,3281.4,4.43957329]
[1768589647517,0.64146002,3282.9,3281.4,4.43957329]
[1768589647718,0.64146002,3282.9,3281.4,0.62231327]
[1768589650516,0.15236,3283.1,3281.4,0.62231327]
[1768589650706,0.15236,3283.1,3281.4,0.77475327]
[1768589652320,0.15233,3283.7,3282.2,0.62231327]
[1768589652619,0.88246343,3283.6,3282.2,0.62231327]
[1768589652804,0.15233,3283.7,3282.2,0.62231327]
[1768589653010,0.8824286,3283.6,3282.2,0.62231327]
[1768589653209,0.15233,3283.7,3282.2,0.62231327]
[1768589653406,0.88243207,3283.6,3282.2,0.62231327]
[1768589653606,0.15233,3283.7,3282.2,0.62231327]
[1768589653807,0.88249861,3283.6,3282.2,0.62231327]
[1768589654007,0.79379002,3283.7,3282.2,0.62231327]
[1768589654210,1.5239339,3283.6,3282.2,0.62231327]
[1768589654415,1.5239339,3283.6,3281.8,0.77473327]
[1768589654416,0.64146002,3283.4,3281.8,0.77473327]
[1768589662015,0.15234,3283.5,3281.8,1.76564495]
[1768589662220,0.15234,3283.5,3281.9,0.59918578]
[1768589668022,0.57485811,3283.8,3281.8,0.99091168]
[1768589668209,0.99091168,3284.0,3281.8,0.99091168]
[1768589668210,0.57485811,3284.0,3282.3,0.59918578]
[1768589668417,1.61149902,3283.9,3282.3,0.59918578]
[1768589668724,1.45917902,3283.8,3282.3,0.59918578]
[1768589668923,0.57485811,3283.6,3282.0,0.15241]
[1768589671522,0.57485811,3283.6,3282.0,0.75302857]
[1768589672125,0.57485811,3283.6,3282.1,0.60061857]
[1768589676730,0.15233,3283.8,3282.3,0.60061857]
[1768589676922,0.15231,3284.3,3282.7,0.60061857]
[1768589685036,0.7550484,3284.3,3282.7,0.60061857]
[1768589689737,0.7550484,3284.3,3282.8,0.60061857]
[1768589690336,0.15231,3284.3,3282.8,0.60061857]
[1768589695343,0.57382772,3284.2,3282.7,3.635]
[1768589695941,0.57382772,3284.2,3282.7,4.16946751]
[1768589696146,1.14322168,3284.3,3282.8,0.53446751]
[1768589698044,1.7170494,3284.3,3282.8,0.53446751]
[1768589698651,1.14322168,3284.3,3282.8,0.53446751]
[1768589699044,0.15231,3284.3,3282.8,0.53446751]
[1768589700354,0.00272233,3284.4,3282.8,0.53446751]
[1768589703659,0.57655005,3284.4,3282.8,0.53446751]
[1768589705356,0.88370043,3284.3,3282.8,0.53446751]
[1768589705658,0.57382772,3284.3,3282.8,0.53446751]
[1768589707158,0.00272233,3284.4,3282.8,0.53446751]
[1768589707361,0.88432111,3284.3,3283.0,1.52463304]
[1768589707561,0.99288786,3284.4,3283.0,1.52463304]
[1768589707860,0.88459283,3284.3,3283.0,1.52463304]
[1768589708062,0.99288786,3284.4,3283.0,1.52463304]
[1768589708260,0.88461609,3284.3,3283.0,1.52463304]
[1768589708562,0.99016553,3284.2,3283.1,0.53446751]
[1768589708764,0.99016553,3284.2,3283.1,0.53707186]
[1768589712063,0.99016553,3283.8,3283.1,0.00260435]
[1768589712254,0.99016553,3283.2,3282.2,4.35172753]
[1768589712765,0.99016553,3283.4,3282.2,0.53446751]
[1768589712970,0.57382772,3283.8,3282.2,0.53446751]
[1768589713157,0.99016553,3283.7,3282.2,0.53446751]
[1768589713359,0.99016553,3283.7,3282.2,0.53662899]
[1768589717160,0.99016553,3283.3,3282.2,0.53662899]
[1768589719369,0.99016553,3283.5,3282.2,0.53662899]
[1768589720066,0.99016553,3283.3,3282.2,0.00216148]
[1768589720272,0.99016553,3283.1,3282.2,0.00216148]
[1768589721872,0.99016553,3283.3,3282.2,0.00216148]
[1768589722874,0.56252155,3283.0,3281.5,0.15243]
[1768589723065,1.696,3283.9,3281.4,4.35106212]
[1768589723066,0.99016553,3282.6,3281.4,4.35106212]
[1768589723266,0.99016553,3282.6,3281.4,0.5338021]
[1768589723964,0.99016553,3282.6,3281.4,0.53625429]
[1768589724162,0.99016553,3282.2,3281.4,0.00245219]
[1768589725174,0.15237,3282.8,3281.7,0.99016553]
[1768589725364,0.56252155,3283.1,3282.0,0.99016553]
[1768589725675,1.55268708,3283.1,3281.6,0.99016553]
[1768589726071,1.55268708,3283.1,3281.6,1.52396763]
[1768589727176,0.15235,3283.4,3281.7,0.5338021]
[1768589727368,1.14251553,3283.4,3281.8,1.52396763]
[1768589727568,1.14251553,3283.4,3282.0,0.99016553]
[1768589729175,0.99016553,3283.2,3281.8,1.52396763]
[1768589733278,0.15235,3283.4,3282.3,0.99016553]
[1768589737281,1.14251553,3283.4,3282.1,1.54546911]
[1768589737479,1.14251553,3283.4,3282.1,0.55530358]
[1768589740886,0.99016553,3283.0,3281.7,0.70772358]
[1768589743687,0.99016553,3283.2,3281.8,0.99016553]
[1768589743897,1.696,3283.9,3281.4,0.00245219]
[1768589743898,0.54631166,3283.9,3282.5,0.55530358]
[1768589744193,0.54631166,3283.9,3282.7,0.99016553]
[1768589745092,0.54631166,3283.9,3282.5,1.54546911]
[1768589745287,0.99016553,3283.8,3282.5,1.54546911]
[1768589747294,0.54631166,3283.9,3282.7,0.99016553]
[1768589747597,1.14248553,3284.0,3282.7,0.99016553]
[1768589751396,0.15232,3284.0,3282.9,0.99016553]
[1768589751591,0.00272233,3284.4,3283.3,0.99016553]
[1768589751901,0.00272233,3284.4,3283.5,0.99016553]
[1768589752101,0.00272233,3284.4,3283.3,0.99016553]
[1768589752295,0.00272233,3284.4,3283.1,1.52881316]
[1768589752889,0.99016553,3284.2,3283.1,0.53864763]
[1768589753990,0.99288786,3284.4,3283.1,0.53864763]
[1768589754194,0.99288786,3284.4,3283.1,1.52881316]
[1768589755898,0.00272233,3284.4,3283.1,1.52881316]
[1768589757096,0.99016553,3284.3,3283.1,1.52881316]
[1768589757900,0.99016553,3284.3,3283.1,0.53864763]
[1768589767321,0.00272233,3284.4,3283.1,0.53864763]
[1768589776928,0.00272233,3284.4,3282.7,0.69102763]
[1768589777128,0.50793994,3284.4,3282.7,0.69102763]
[1768589777430,0.99017457,3284.0,3282.5,3.81726002]
[1768589777627,0.50521761,3283.9,3282.5,3.81726002]
[1768589777925,0.50521761,3283.8,3282.3,0.53864763]
[1768589780623,0.65754761,3283.8,3282.0,3.81726002]
[1768589780826,0.50521761,3283.5,3282.0,3.81726002]
[1768589781129,1.14251457,3283.6,3281.6,41.33864763]
[1768589781130,0.50521761,3283.3,3281.6,41.33864763]
[1768589781525,0.50521761,3283.3,3281.7,0.53688365]
[1768589786125,1.51028645,3283.1,3281.5,40.8]
[1768589786326,0.52011188,3283.0,3281.4,0.00245219]
[1768589786525,0.67247188,3283.0,3281.4,0.00245219]
[1768589788235,0.67247188,3283.0,3281.4,0.53067458]
[1768589795942,0.506923,3282.9,3281.4,0.53067458]
[1768589801740,0.659293,3282.9,3281.4,0.53067458]
[1768589801938,0.506923,3282.7,3281.4,0.00245219]
[1768589802139,1.49709757,3282.7,3281.4,0.00245219]
[1768589802942,0.506923,3282.7,3281.4,0.00245219]
[1768589803840,0.15238,3282.8,3281.4,0.53067458]
[1768589810744,0.659303,3282.8,3281.4,0.53067458]
[1768589815455,0.659303,3282.8,3281.4,0.00245219]
[1768589829351,0.659303,3282.8,3281.4,0.99359803]
[1768589830050,1.14352584,3282.7,3281.4,0.00245219]
[1768589830250,0.99114584,3282.0,3281.4,0.00245219]
[1768589830455,0.99387516,3282.0,3281.4,0.00245219]
[1768589831262,0.99387516,3282.0,3280.8,4.34147586]
[1768589831454,0.00272932,3282.0,3280.8,0.52421584]
[1768589832267,0.00272932,3282.0,3280.9,0.99114584]
[1768589835170,0.00272932,3282.0,3281.1,0.99114584]
[1768589835769,0.00272932,3282.0,3281.3,0.99114584]
[1768589835968,0.52671214,3282.7,3281.3,1.51536168]
[1768589836476,0.89109767,3282.6,3281.3,1.51536168]
[1768589836767,0.52671214,3282.7,3281.3,1.51536168]
[1768589836967,0.89107517,3282.6,3281.3,1.51536168]
[1768589837169,0.52932272,3282.7,3281.3,1.51536168]
[1768589837378,1.88220487,3282.6,3281.3,1.51536168]
[1768589837577,0.99114584,3282.6,3281.3,1.51536168]
[1768589838172,0.99114584,3282.2,3280.9,1.51536168]
[1768589838373,0.99114584,3282.2,3280.9,0.52421584]
[1768589838876,0.99114584,3282.2,3281.0,40.8]
[1768589839071,0.99114584,3282.4,3281.0,40.8]
[1768589839277,0.99114584,3282.4,3280.9,1.51536168]
[1768589842979,1.47577321,3282.4,3280.9,1.51536168]
[1768589843284,1.47577321,3282.4,3281.0,0.99114584]
[1768589845281,0.15238,3282.6,3281.0,1.43846353]
[1768589845474,0.15238,3282.6,3281.6,0.99114584]
[1768589846078,0.15238,3282.6,3281.3,0.99114584]
[1768589848278,0.15238,3282.6,3281.4,0.44731769]
[1768589848485,0.00261058,3282.7,3281.8,0.99114584]
[1768589848986,0.00261058,3282.7,3281.7,0.44731769]
[1768589849179,0.00261058,3282.7,3281.4,0.99114584]
[1768589849379,0.00261058,3282.7,3281.4,1.44570233]
[1768589852592,0.00261058,3282.7,3281.6,0.99114584]
[1768589853791,0.00261058,3282.7,3281.4,1.44570233]
[1768589858204,0.00261058,3282.7,3281.7,0.99114584]
[1768589861809,0.00261058,3282.7,3281.7,1.44570233]
[1768589863501,0.00261058,3282.7,3281.8,0.45455649]
[1768589864015,0.00261058,3282.7,3282.0,1.44570233]
[1768589865414,0.00261058,3282.7,3281.5,0.45455649]
[1768589865599,0.99375642,3282.7,3281.5,0.45455649]
[1768589865907,0.00261058,3282.7,3281.5,0.45455649]
[1768589866110,0.00261058,3282.7,3281.8,0.45455649]
[1768589872514,0.00261058,3282.7,3281.4,0.6085316]
[1768589872515,0.99114584,3282.5,3281.4,0.6085316]
[1768589873616,0.99114584,3282.5,3281.4,0.4560916]
[1768589882122,0.00261058,3282.7,3281.4,1.44723744]
[1768589882618,0.00261058,3282.7,3281.5,0.4560916]
[1768589883016,0.99375642,3282.7,3281.5,0.4560916]
[1768589889331,0.00261058,3282.7,3281.5,0.4560916]
[1768589896831,0.99117901,3282.3,3280.8,5.18756455]
[1768589897228,0.99117901,3282.3,3280.8,1.37030453]
[1768589897831,0.46036036,3282.2,3280.8,1.37030453]
[1768589898137,0.46036036,3282.2,3280.8,0.00236408]
[1768589899642,0.61277036,3282.1,3280.8,0.00236408]
[1768589900432,0.99117901,3281.9,3280.8,0.00236408]
[1768589901142,1.45153937,3281.9,3280.8,0.00236408]
[1768589903032,1.60395937,3281.9,3280.8,0.00236408]
[1768589903234,0.44046773,3281.8,3280.2,0.4560916]
[1768589903440,0.99117901,3281.0,3279.8,4.26773232]
[1768589903639,0.99117901,3281.0,3279.8,3.81726002]
[1768589903841,1.43164674,3281.4,3279.4,0.4504723]
[1768589904038,1.43164674,3281.4,3279.6,0.4504723]
[1768589904439,0.44046773,3281.4,3279.6,0.4504723]
[1768589904638,0.15245,3281.2,3279.6,0.4504723]
[1768589913660,0.15245,3281.2,3279.7,0.43477603]
[1768589914852,0.15243,3281.7,3279.8,0.43477603]
[1768589915060,0.15243,3281.6,3280.0,0.43477603]
[1768589919164,0.15243,3281.6,3280.1,0.43477603]
[1768589919468,0.5761209,3282.2,3280.4,0.43477603]
[1768589919661,0.5761209,3282.2,3280.5,0.43477603]
[1768589923864,0.4237209,3282.2,3280.5,0.43477603]
[1768589924161,0.5761309,3282.1,3280.5,0.43477603]
[1768589930366,0.15241,3282.1,3280.5,0.43477603]
[1768589946283,0.89046003,3282.0,3280.5,0.43477603]
[1768589946585,0.15241,3282.0,3280.5,0.43477603]
[1768589949287,0.99173506,3281.8,3280.5,0.43477603]
[1768589953479,0.99173506,3281.6,3280.5,0.43477603]
[1768589953679,0.99173506,3281.4,3280.5,0.43477603]
[1768589954081,0.99173506,3281.7,3280.5,0.43477603]
[1768589955391,0.15242,3281.8,3280.8,1.40780024]
[1768589960793,0.15242,3281.8,3280.8,0.41606518]
[1768589965192,0.99173506,3281.5,3280.3,0.40671576]
[1768589965600,0.99173506,3281.7,3280.4,0.40671576]
[1768589966810,0.15242,3281.8,3280.4,0.40671576]
[1768589967595,0.15242,3281.8,3280.6,0.40671576]
[1768589973510,0.15242,3281.8,3280.8,0.39869543]
[1768589974518,0.99173506,3281.7,3280.4,0.39869543]
[1768589974817,0.99173506,3281.4,3280.2,3.81726002]
[1768589975009,0.99173506,3280.8,3280.0,0.39869543]
[1768589975414,0.99173506,3281.0,3280.0,0.39869543]
[1768589976118,0.99173506,3280.8,3279.7,3.81726002]
[1768589976416,0.39306284,3281.1,3279.6,0.39869543]
[1768589976722,0.99173506,3280.9,3279.6,0.39869543]
[1768589980827,0.99173506,3280.7,3279.6,0.39869543]
[1768589983530,0.99173506,3280.5,3279.6,0.39869543]
[1768589984832,0.99173506,3280.7,3279.6,0.39869543]
[1768589985233,0.15246,3280.9,3279.6,0.39869543]
[1768589985534,0.99173506,3280.8,3279.6,0.39869543]
[1768589994937,0.99173506,3280.8,3279.4,40.80295751]
[1768589995140,0.99173506,3280.8,3279.4,41.79469257]
[1768589998540,0.99173506,3280.6,3279.4,41.79469257]
[1768590000332,0.99173506,3280.6,3279.4,40.80295751]
[1768590001637,0.15246,3280.9,3279.5,0.40326891]
[1768590001827,0.15246,3280.9,3279.6,0.99173506]
[1768590002642,1.14419506,3280.9,3279.6,0.99173506]
[1768590003048,0.99173506,3280.7,3279.5,0.40326891]
[1768590003248,0.99173506,3280.0,3279.4,0.00295751]
[1768590003542,0.00216979,3280.0,3279.4,0.00295751]
[1768590004241,0.00216979,3280.0,3279.4,0.99469257]
[1768590004439,0.56518113,3281.0,3279.8,0.99173506]
[1768590004638,0.89054399,3280.9,3279.6,0.99173506]
[1768590004838,0.56518113,3281.0,3279.6,0.99173506]
[1768590005144,1.88229569,3280.9,3279.6,0.99173506]
[1768590005340,0.99448649,3280.9,3279.6,0.99173506]
[1768590005730,0.99448649,3280.9,3279.4,1.39796148]
[1768590006132,0.99173506,3280.5,3279.4,0.40622642]
[1768590006544,0.00275143,3280.9,3279.6,1.39500397]
[1768590006750,0.15247,3280.7,3279.8,0.99173506]
[1768590006935,0.15247,3280.7,3279.6,1.39500397]
[1768590007440,1.55692619,3280.7,3279.4,0.00295751]
[1768590007646,0.99173506,3279.7,3279.0,0.225414]
[1768590007942,0.56521113,3280.2,3279.0,0.225414]
[1768590008142,0.15249,3280.2,3279.0,0.225414]
[1768590008738,0.15249,3280.2,3279.0,0.22760659]
[1768590010947,0.15247,3280.8,3279.1,0.40326891]
[1768590011246,0.15247,3280.8,3279.3,0.40326891]
[1768590012745,0.15247,3280.7,3279.3,0.40326891]
[1768590012942,0.41272113,3280.7,3279.0,0.22760659]
[1768590013139,0.41272113,3280.3,3279.0,0.22760659]
[1768590013343,0.41272113,3280.2,3279.0,0.22760659]
[1768590014045,0.56521113,3280.2,3279.0,0.22760659]
[1768590014438,0.1525,3280.1,3279.0,0.22760659]
[1768590016762,0.1525,3280.1,3279.0,0.6308755]
[1768590018355,0.1525,3280.1,3279.1,0.40326891]
[1768590018549,0.1525,3280.1,3279.0,0.22760659]
[1768590018749,0.1525,3280.1,3279.0,0.6308755]
[1768590023155,0.41272113,3280.6,3279.1,0.42211138]
[1768590023456,0.56519113,3280.6,3279.1,0.42211138]
[1768590025259,0.15247,3280.6,3279.1,0.42211138]
[1768590025551,0.15248,3280.5,3279.1,0.42211138]
[1768590026358,0.39907812,3280.7,3279.1,0.42211138]
[1768590026558,0.55156812,3280.3,3279.0,0.22760659]
[1768590028254,0.39907812,3280.3,3279.0,0.22760659]
[1768590028463,0.1525,3280.0,3279.0,0.22760659]
[1768590028650,0.15251,3279.9,3279.0,0.22760659]
[1768590030156,0.57155719,3279.9,3279.0,0.22760659]
[1768590030862,0.57155719,3279.9,3278.2,0.40144743]
[1768590031256,0.41904719,3279.8,3278.3,40.8]
[1768590031857,0.41904719,3279.8,3278.3,40.80335751]
[1768590032264,0.41904719,3279.8,3278.3,41.20480494]
[1768590032466,0.41904719,3279.8,3278.4,0.40144743]
[1768590035965,0.57155719,3279.8,3278.4,0.40144743]
[1768590036870,0.15251,3279.8,3278.4,0.40144743]
[1768590037168,0.15251,3279.8,3278.5,0.40144743]
[1768590037871,0.15249,3280.4,3278.7,0.40144743]
[1768590038071,0.89109648,3280.3,3278.7,0.40144743]
[1768590038362,0.89109648,3280.2,3278.7,0.40144743]
[1768590039366,0.15249,3280.3,3278.7,0.40144743]
[1768590040165,0.42179862,3280.9,3279.0,0.40144743]
[1768590040475,0.89119649,3280.8,3279.0,0.40144743]
[1768590040773,0.89119649,3280.7,3279.1,41.20144743]
[1768590040974,0.42179862,3280.9,3279.2,0.40144743]
[1768590041271,0.89118662,3280.8,3279.2,0.40144743]
[1768590041470,0.42179862,3280.9,3279.2,0.40144743]
[1768590041674,0.15247,3280.7,3279.2,0.40144743]
[1768590044875,0.00275143,3280.9,3279.4,0.40144743]
[1768590047172,0.57425862,3280.9,3279.4,0.40144743]
[1768590047371,0.41904719,3280.8,3279.1,40.8]
[1768590048578,0.57151719,3280.8,3279.1,40.8]
[1768590049173,0.41904719,3280.7,3279.1,40.8]
[1768590049382,0.57152719,3280.6,3279.1,40.8]
[1768590049575,0.15249,3280.3,3279.0,0.40144743]
[1768590049782,0.41904719,3280.1,3278.5,0.40144743]
[1768590051584,0.57154719,3280.1,3278.5,0.40144743]
[1768590054584,0.1525,3280.1,3278.5,0.40144743]
[1768590056886,0.55904762,3280.1,3278.5,0.40144743]
[1768590057791,0.1525,3280.0,3278.5,0.40144743]
[1768590066093,0.55904762,3280.0,3278.5,0.40144743]
[1768590067814,0.40654762,3280.0,3278.5,0.40144743]
[1768590068100,0.15252,3279.7,3278.3,0.00335751]
[1768590068984,0.55907762,3279.6,3278.3,0.00335751]
[1768590069196,0.55907762,3279.4,3278.3,0.00335751]
[1768590069402,0.99353563,3278.9,3278.3,0.00335751]
[1768590069694,0.99353563,3278.9,3277.7,41.1790367]
[1768590069897,0.99353563,3279.1,3277.7,42.17257233]
[1768590070103,1.14607563,3279.2,3277.9,0.99353563]
[1768590070590,1.55262325,3279.2,3277.9,0.00342463]
[1768590071305,0.99353563,3278.4,3277.9,0.00342463]
[1768590071595,0.99598,3278.4,3277.9,0.00342463]
[1768590071796,0.00244437,3278.4,3277.9,0.00342463]
[1768590073588,0.00244437,3278.4,3277.9,0.38246133]
[1768590073893,0.15256,3278.9,3277.9,0.38246133]
[1768590074396,0.99353563,3279.1,3277.9,0.38246133]
[1768590074582,0.99353563,3279.4,3277.9,0.38246133]
[1768590074787,0.99353563,3279.2,3277.9,0.38246133]
[1768590074989,0.99581291,3279.4,3278.0,1.37257233]
[1768590075391,0.00227728,3279.4,3278.1,0.3790367]
[1768590075693,0.00227728,3279.4,3278.2,1.37257233]
[1768590076489,0.00227728,3279.4,3278.3,0.3790367]
[1768590077198,0.99353563,3279.2,3278.3,0.3790367]
[1768590077899,0.99353563,3279.3,3278.3,0.3790367]
[1768590078602,0.00227728,3279.4,3278.3,0.3790367]
[1768590078787,0.99581291,3279.4,3278.3,0.3790367]
[1768590081098,0.00227728,3279.4,3278.3,0.3790367]
[1768590081789,0.00227728,3279.4,3278.3,1.37257233]
[1768590082600,0.00227728,3279.4,3278.3,0.3790367]
[1768590082900,0.00227728,3279.4,3278.4,1.37382523]
[1768590084297,0.00227728,3279.4,3278.5,0.3802896]
[1768590085603,0.99353563,3280.2,3278.8,0.3802896]
[1768590086502,0.15249,3280.3,3278.9,1.37382523]
[1768590086700,0.15581495,3280.3,3278.9,1.37382523]
[1768590086899,0.99353563,3280.2,3278.9,1.37382523]
[1768590087706,1.14935058,3280.3,3278.9,1.37382523]
[1768590088002,1.14935058,3280.3,3279.0,0.3802896]
[1768590088213,0.15581495,3280.3,3279.2,0.3802896]
[1768590090317,0.00332495,3280.3,3279.2,0.3802896]